fUST/lending_fUST_20251204
["ID","MTS","AMOUNT","RATE_DAILY","PERIOD"]
[396229857,1764846335753,-500.0,0.00010375,2]
[396229858,1764846335782,-556.87764958,0.00010375,2]
[396229859,1764846335812,-556.87764958,0.00010375,2]
[396229860,1764846335979,-500.0,0.00010375,2]
[396229861,1764846336011,-500.0,0.00010375,2]
[396229862,1764846336043,-556.87764958,0.00010375,2]
[396229863,1764846336077,-556.87764958,0.00010375,2]
[396229864,1764846336111,-500.0,0.00010375,2]
[396229865,1764846336145,-556.87764958,0.00010375,2]
[396229866,1764846336197,-556.87764958,0.00010375,2]
[396229867,1764846336235,-500.0,0.00010375,2]
[396229868,1764846336267,-556.87764958,0.00010375,2]
[396229869,1764846337452,-556.87764958,0.00010375,2]
[396229870,1764846337481,-556.87764958,0.00010375,2]
[396229871,1764846337509,-500.0,0.00010375,2]
[396229872,1764846337539,-556.87764958,0.00010375,2]
[396229873,1764846337568,-556.87764958,0.00010375,2]
[396229874,1764846337596,-500.0,0.00010375,2]
[396229875,1764846337626,-556.87764958,0.00010375,2]
[396229876,1764846337655,-556.87764958,0.00010375,2]
[396229877,1764846337684,-556.87764958,0.00010375,2]
[396229878,1764846337724,-556.87764958,0.00010375,2]
[396229879,1764846337753,-556.87764958,0.00010375,2]
[396229880,1764846337782,-556.87764958,0.00010375,2]
[396229881,1764846337812,-556.87764958,0.00010375,2]
[396229882,1764846337840,-556.87764958,0.00010375,2]
[396229883,1764846337870,-556.87764958,0.00010375,2]
[396229884,1764846337898,-556.87764958,0.00010375,2]
[396229885,1764846337928,-556.87764958,0.00010375,2]
[396229886,1764846337956,-533.08995714,0.00010375,2]
[396229887,1764846337998,-23.78769244,0.00010375,2]
[396229888,1764846338027,-556.87764958,0.00010375,2]
[396229889,1764846338060,-556.87764958,0.00010375,2]
[396229890,1764846338090,-556.87764958,0.00010375,2]
[396229891,1764846338122,-556.87764958,0.00010375,2]
[396229892,1764846338152,-556.87764958,0.00010375,2]
[396229893,1764846338183,-556.87764958,0.00010375,2]
[396229894,1764846338213,-556.87764958,0.00010375,2]
[396229895,1764846338242,-556.87764958,0.00010375,2]
[396229896,1764846338272,-485.51457226,0.00010375,2]
[396229897,1764846338310,-71.36307732,0.00010375,2]
[396229898,1764846338340,-500.0,0.00010375,2]
[396229899,1764846338370,-500.0,0.00010375,2]
[396229900,1764846338404,-338.08393709,0.00010375,2]
[396229901,1764846338435,-556.87764959,0.00010375,2]
[396229902,1764846338464,-556.87764959,0.00010375,2]
[396229903,1764846338493,-556.87764958,0.00010375,2]
[396229904,1764846340542,-1027.89287409,0.00010376,2]
[396229905,1764846340556,-10000.01,0.00010376,2]
[396229906,1764846340571,-6764.15548621,0.00010376,2]
[396229907,1764846340580,-500.0,0.00010382,2]
[396229908,1764846340591,-2735.85451379,0.00010383,2]
[396229909,1764846340909,-10000.01,0.00010383,2]
[396229910,1764846341055,-10000.01,0.00010383,2]
[396229911,1764846341209,-4522.33271025,0.00010383,2]
[396229912,1764846341234,-955.3445795,0.00010383,2]
[396229913,1764846594892,-300.0,0.00010589,2]
[396229914,1764846602138,300.0,0.00010589,2]
[396229915,1764846604072,1200.0,0.00010589,2]
[396229935,1764846631837,-300.0,0.0001059,2]
[396229936,1764846631847,-300.0,0.0001059,2]
[396229937,1764846631857,-241.6034007,0.0001059,2]
[396229938,1764846631890,-58.3965993,0.0001059,2]
[396229939,1764846631900,-300.0,0.0001059,2]
[396229940,1764846631910,-300.0,0.0001059,2]
[396229941,1764846631919,-300.0,0.0001059,2]
[396229942,1764846632192,-300.0,0.0001059,2]
[396229943,1764846632218,-152.32848459,0.0001059,2]
[396229944,1764846632230,-147.67151541,0.0001059,2]
[396229945,1764846632239,-300.0,0.0001059,2]
[396229946,1764846632249,-152.32848459,0.0001059,2]
[396229947,1764846632260,-147.67151541,0.0001059,2]
[396229948,1764846632270,-300.0,0.0001059,2]
[396229949,1764846632279,-300.0,0.0001059,2]
[396229950,1764846632288,-300.0,0.0001059,2]
[396229951,1764846632298,-300.0,0.0001059,2]
[396229952,1764846632307,-300.0,0.0001059,2]
[396229953,1764846632316,-600.0,0.0001059,2]
[396229954,1764846632326,-237.0,0.0001059,2]
[396229955,1764846632335,-150.0,0.00011001,2]
[396229956,1764846632345,-420.0,0.00011641,2]
[396229957,1764846632354,-218.0,0.00011648,2]
[396229958,1764846632364,-720.0,0.00011649,2]
[396229959,1764846632373,-345.028,0.00011672,2]
[396229960,1764846632383,-395.97764457,0.00012403,2]
[396229961,1764846632392,-411.33723783,0.00012403,2]
[396229962,1764846632402,-606.66215065,0.00012403,2]
[396229963,1764846632411,-524.71610106,0.00012403,2]
[396229964,1764846632420,-500.0,0.00012403,2]
[396229965,1764846632430,-500.0,0.00012403,2]
[396229966,1764846632439,-500.0,0.00012403,2]
[396229967,1764846632449,-500.0,0.00012403,2]
[396229968,1764846632460,-259.25,0.00012403,2]
[396229969,1764846632471,-500.0,0.00012403,2]
[396229970,1764846632484,-500.0,0.00012403,2]
[396229971,1764846632493,-500.0,0.00012403,2]
[396229972,1764846632503,-500.0,0.00012403,2]
[396229973,1764846632512,-500.0,0.00012403,2]
[396229974,1764846632523,-500.0,0.00012403,2]
[396229975,1764846632533,-500.0,0.00012403,2]
[396229976,1764846632542,-500.0,0.00012403,2]
[396229977,1764846632553,-587.0,0.00012797,2]
[396229978,1764846632563,-864.0,0.00012814,2]
[396229979,1764846632572,-414.0,0.00012866,2]
[396229980,1764846632582,-151.0,0.00012947,2]
[396229981,1764846632591,-151.0,0.00012947,2]
[396229982,1764846632600,-261.89933889,0.00012947,2]
[396229983,1764846632609,-151.0,0.00012947,2]
[396229984,1764846632619,-151.0,0.00012947,2]
[396229985,1764846632628,-272.79643717,0.00012947,2]
[396229986,1764846632638,-151.0,0.00012947,2]
[396229987,1764846632647,-500.0,0.00012947,2]
[396229988,1764846632656,-171.62338099,0.00012947,2]
[396229989,1764846632666,-152.32685488,0.00012947,2]
[396229990,1764846632676,-500.0,0.00012947,2]
[396229991,1764846632685,-151.0,0.00012947,2]
[396229992,1764846632695,-151.0,0.00012947,2]
[396229993,1764846632705,-151.0,0.00012947,2]
[396229994,1764846632715,-151.0,0.00012947,2]
[396229995,1764846632725,-151.0,0.00012947,2]
[396229996,1764846632734,-151.0,0.00012947,2]
[396229997,1764846632744,-151.0,0.00012947,2]
[396229998,1764846632753,-500.0,0.00012947,2]
[396229999,1764846632763,-177.0,0.00013001,2]
[396230000,1764846632773,-298.17882415,0.00013084,2]
[396230001,1764846632783,-151.0,0.00013084,2]
[396230002,1764846632793,-159.49543528,0.00013084,2]
[396230003,1764846632804,-199.48523101,0.00013084,2]
[396230004,1764846632813,-500.0,0.00013084,2]
[396230005,1764846632823,-500.0,0.00013084,2]
[396230006,1764846632833,-151.0,0.00013084,2]
[396230007,1764846632843,-151.0,0.00013084,2]
[396230008,1764846632852,-151.0,0.00013084,2]
[396230009,1764846632862,-204.45238006,0.00013084,2]
[396230010,1764846632871,-150.0,0.00013156,2]
[396230011,1764846632881,-150.0,0.00013156,2]
[396230012,1764846632890,-150.0,0.00013156,2]
[396230013,1764846632899,-151.0,0.00013221,2]
[396230014,1764846632908,-500.0,0.00013221,2]
[396230015,1764846632918,-151.86558689,0.00013221,2]
[396230016,1764846632927,-198.0,0.00013221,2]
[396230017,1764846632937,-261.27006333,0.00013221,2]
[396230018,1764846632946,-198.98646197,0.00013221,2]
[396230019,1764846632955,-500.0,0.00013221,2]
[396230020,1764846632965,-298.31875175,0.00013337,2]
[396230021,1764846632974,-233.75683713,0.00013358,2]
[396230022,1764846632983,-500.0,0.00013358,2]
[396230023,1764846632993,-194.45868258,0.00013479,2]
[396230024,1764846633004,-263.30918731,0.00013479,2]
[396230025,1764846633014,-154.24289489,0.00013479,2]
[396230026,1764846633023,-300.9247855,0.00013479,2]
[396230027,1764846633032,-349.67560302,0.00013479,2]
[396230028,1764846633042,-277.6372108,0.00013627,2]
[396230029,1764846633051,-487.07519561,0.0001365,2]
[396230030,1764846633060,-586.549962,0.00013699,2]
[396230031,1764846633070,-823.0,0.00014069,2]
[396230032,1764846633079,-1000.0,0.00014095,2]
[396230033,1764846633088,-1000.0,0.000141,2]
[396230034,1764846633098,-800.0,0.00014324,2]
[396230035,1764846633107,-197.61404869,0.0001453,7]
[396230036,1764846633116,-493.57726365,0.00014543,2]
[396230037,1764846633125,-326.62277025,0.00014624,7]
[396230038,1764846633142,-876.7353521,0.00014694,2]
[396230039,1764846633162,-399.12955785,0.00014734,2]
[396230040,1764846633172,-800.0,0.00014735,2]
[396230041,1764846633182,-800.0,0.00014738,2]
[396230042,1764846633191,-800.0,0.00014767,2]
[396230043,1764846633200,-800.0,0.00014814,2]
[396230044,1764846633210,-800.0,0.00014888,2]
[396230045,1764846633219,-998.80143827,0.00014998,2]
[396230046,1764846633228,-5837.93382035,0.00015,10]
[396230047,1764846633238,-204.0,0.00015001,2]
[396230048,1764846633248,-195.649873,0.00015068,2]
[396230049,1764846633258,-350.72582714,0.00015141,2]
[396230050,1764846633268,-223.0,0.00015466,2]
[396230051,1764846633277,-1000.0,0.00015505,2]
[396230052,1764846633286,-244.0,0.00015505,2]
[396230053,1764846633296,-1054.39876459,0.00015705,7]
[396230054,1764846633306,-1557.08198533,0.00015739,2]
[396230055,1764846633316,-414.0,0.00015866,2]
[396230056,1764846633327,-153.0,0.0001589,2]
[396230057,1764846633337,-8851.35,0.0001599,2]
[396230058,1764846633348,-150.0,0.00016156,2]
[396230059,1764846633358,-150.0,0.00016156,2]
[396230060,1764846633368,-231.0,0.00017001,2]
[396230061,1764846633378,-1000.0,0.00017055,2]
[396230062,1764846633388,-492.0,0.00017055,2]
[396230063,1764846633399,-10000.0,0.00017204,2]
[396230064,1764846633408,-158.92542874,0.00017562,2]
[396230065,1764846633418,-800.0,0.00017563,2]
[396230066,1764846633427,-355.0,0.00017636,2]
[396230067,1764846633437,-800.0,0.00017703,2]
[396230068,1764846633446,-158.92542874,0.00017726,2]
[396230069,1764846633456,-539.44860142,0.00017758,2]
[396230070,1764846633467,-500.0,0.00017758,2]
[396230071,1764846633480,-223.3197517,0.00017758,2]
[396230072,1764846633490,-500.0,0.00017758,2]
[396230073,1764846633500,-500.0,0.00017758,2]
[396230074,1764846633509,-500.0,0.00017758,2]
[396230075,1764846633519,-500.0,0.00017758,2]
[396230076,1764846633528,-500.0,0.00017758,2]
[396230077,1764846633539,-500.0,0.00017758,2]
[396230078,1764846633549,-500.0,0.00017758,2]
[396230079,1764846633559,-500.0,0.00017758,2]
[396230080,1764846633568,-500.0,0.00017758,2]
[396230081,1764846633577,-500.0,0.00017758,2]
[396230082,1764846633587,-500.0,0.00017758,2]
[396230083,1764846633597,-500.0,0.00017758,2]
[396230084,1764846633605,-500.0,0.00017758,2]
[396230085,1764846633614,-472.78383594,0.00017758,2]
[396230086,1764846633624,-500.0,0.00017758,2]
[396230087,1764846633633,-726.76506826,0.00017759,2]
[396230088,1764846633643,-399.12955785,0.000178,3]
[396230089,1764846633652,-151.58114561,0.00017808,2]
[396230090,1764846633662,-1045.0,0.00017822,2]
[396230091,1764846633672,-158.92542874,0.00017863,2]
[396230092,1764846633681,-600.0,0.00017887,2]
[396230093,1764846633691,-515.98681818,0.000179,2]
[396230094,1764846633700,-21090.35695816,0.00017989,2]
[396230104,1764846640939,-3e-08,0.00012403,2]
[396230106,1764846643141,-499.99999997,0.00012403,2]
[396230107,1764846643150,-1018.91962,0.00017989,2]
[396230108,1764846643232,-123.50291,0.00017989,2]
[396230156,1764846646144,-34737.04067909,0.00017989,2]
[396230257,1764847051108,196.2412312,7.809e-05,2]
[396230258,1764847514695,160.0,5.8e-07,2]
[396230259,1764847515730,160.0,5.8e-07,2]
[396230294,1764847832101,-400.50857073,0.00012448,2]
[396230295,1764847832112,-5000.0,0.00012574,2]
[396230296,1764847832122,-150.0,0.00012638,2]
[396230297,1764847832132,-414.0,0.00013627,2]
[396230298,1764847832141,-177.0,0.00014638,2]
[396230299,1764847832151,-399.12955785,0.0001591,2]
[396230300,1764847832160,-1200.0,0.0001608,2]
[396230301,1764847832170,-1600.0,0.00016082,2]
[396230302,1764847832180,-300.0,0.00016397,2]
[396230303,1764847832190,-300.0,0.00016397,2]
[396230304,1764847832199,-300.0,0.00016397,2]
[396230305,1764847832209,-1200.0,0.00016398,2]
[396230306,1764847832219,-300.0,0.00016403,2]
[396230307,1764847832229,-300.0,0.00016403,2]
[396230308,1764847832238,-300.0,0.00016403,2]
[396230309,1764847832248,-300.0,0.00016403,2]
[396230310,1764847832258,-300.0,0.00016403,2]
[396230311,1764847832267,-300.0,0.00016403,2]
[396230312,1764847832277,-300.0,0.00016403,2]
[396230313,1764847832287,-300.0,0.00016403,2]
[396230314,1764847832296,-300.0,0.00016403,2]
[396230315,1764847832306,-300.0,0.00016403,2]
[396230316,1764847832316,-300.0,0.00016403,2]
[396230317,1764847832326,-300.0,0.00016403,2]
[396230318,1764847832336,-300.0,0.00016403,2]
[396230319,1764847832347,-300.0,0.00016403,2]
[396230320,1764847832356,-300.0,0.00016403,2]
[396230321,1764847832366,-414.0,0.00016627,2]
[396230322,1764847832376,-204.0,0.00016638,2]
[396230323,1764847832386,-500.0,0.00017003,2]
[396230324,1764847832396,-513.4979034,0.00017003,2]
[396230325,1764847832406,-420.86972711,0.00017003,2]
[396230326,1764847832415,-299.27785938,0.00017003,2]
[396230327,1764847832426,-500.0,0.00017003,2]
[396230328,1764847832435,-442.17336728,0.00017003,2]
[396230329,1764847832445,-392.34409543,0.00017003,2]
[396230330,1764847832455,-500.0,0.00017003,2]
[396230331,1764847832464,-500.0,0.00017003,2]
[396230332,1764847832474,-515.87675591,0.00017003,2]
[396230333,1764847832483,-500.0,0.00017003,2]
[396230334,1764847832493,-500.0,0.00017003,2]
[396230335,1764847832503,-500.0,0.00017003,2]
[396230336,1764847832512,-500.0,0.00017003,2]
[396230337,1764847832521,-500.0,0.00017003,2]
[396230338,1764847832531,-500.0,0.00017003,2]
[396230339,1764847832539,-500.0,0.00017003,2]
[396230340,1764847832549,-500.0,0.00017003,2]
[396230341,1764847832558,-500.0,0.00017003,2]
[396230342,1764847832568,-500.0,0.00017003,2]
[396230343,1764847832578,-500.0,0.00017003,2]
[396230344,1764847832587,-500.0,0.00017003,2]
[396230345,1764847832597,-500.0,0.00017003,2]
[396230346,1764847832606,-500.0,0.00017003,2]
[396230347,1764847832616,-500.0,0.00017003,2]
[396230348,1764847832626,-455.73186243,0.00017003,2]
[396230349,1764847832635,-500.0,0.00017003,2]
[396230350,1764847832646,-500.0,0.00017003,2]
[396230351,1764847832655,-500.0,0.00017003,2]
[396230352,1764847832665,-500.0,0.00017003,2]
[396230353,1764847832674,-500.0,0.00017003,2]
[396230354,1764847832684,-500.0,0.00017003,2]
[396230355,1764847832693,-500.0,0.00017003,2]
[396230356,1764847832702,-500.0,0.00017003,2]
[396230357,1764847832711,-500.0,0.00017003,2]
[396230358,1764847832721,-500.0,0.00017003,2]
[396230359,1764847832730,-500.0,0.00017003,2]
[396230360,1764847832739,-500.0,0.00017003,2]
[396230361,1764847832749,-500.0,0.00017003,2]
[396230362,1764847832758,-500.0,0.00017003,2]
[396230363,1764847832768,-500.0,0.00017003,2]
[396230364,1764847832778,-586.22429136,0.00017003,2]
[396230365,1764847832788,-500.0,0.00017003,2]
[396230366,1764847832798,-500.0,0.00017003,2]
[396230367,1764847832807,-500.0,0.00017003,2]
[396230368,1764847832817,-500.0,0.00017003,2]
[396230369,1764847832828,-500.0,0.00017003,2]
[396230370,1764847832840,-500.0,0.00017003,2]
[396230371,1764847832850,-500.0,0.00017003,2]
[396230372,1764847832858,-500.0,0.00017003,2]
[396230373,1764847832867,-500.0,0.00017003,2]
[396230374,1764847832876,-6573.68126828,0.00017004,2]
[396230375,1764847832888,-16114.08045424,0.00017004,2]
[396230376,1764847832899,-8469.92604423,0.00017004,2]
[396230382,1764847838138,-2752.91582415,0.00017004,2]
[396230383,1764847838149,-3138.04255411,0.00017004,2]
[396230384,1764847838192,-2320.26025049,0.00017004,2]
[396230385,1764847838248,-2477.25189533,0.00017004,2]
[396230408,1764847840258,-433.33155169,0.00017004,2]
[396230410,1764847840269,-452.649032,0.00017004,2]
[396230414,1764847840312,-1540.49800524,0.00017004,2]
[396230416,1764847840323,-2626.61707277,0.00017004,2]
[396230418,1764847840334,-2000.04507,0.00017004,2]
[396230572,1764847844688,-3735.34196852,0.00016834,2]
[396230573,1764847844703,-29914.79521089,0.00017004,2]
[396230574,1764847844728,-289.54641168,0.00017004,2]
[396230575,1764847844740,-1135.04524533,0.00017004,2]
[396230577,1764847846172,-253.7425319,0.00017004,2]
[396230578,1764847934429,1034.09150114,0.000211,99]
[396230580,1764848259620,-316.86599963,0.0001303,2]
[396230581,1764848259649,-438.25617435,0.00013162,2]
[396230582,1764848259677,-150.0,0.00013362,2]
[396230583,1764848259704,-414.0,0.00013565,2]
[396230584,1764848259731,-557.222463,0.00013699,2]
[396230585,1764848259764,-399.12955785,0.00014728,2]
[396230586,1764848259793,-177.0,0.00015362,2]
[396230587,1764848259820,-174.4049814,0.00016218,2]
[396230588,1764848259849,-1400.0,0.00016356,2]
[396230589,1764848259878,-746.25164754,0.00016448,2]
[396230590,1764848262549,-453.74835246,0.00016448,2]
[396230591,1764848262585,-300.0,0.00016449,2]
[396230592,1764848262619,-300.0,0.00016449,2]
[396230593,1764848262652,-300.0,0.00016449,2]
[396230594,1764848262686,-300.0,0.00016449,2]
[396230595,1764848262722,-300.0,0.0001645,2]
[396230596,1764848262758,-300.0,0.0001645,2]
[396230597,1764848262795,-300.0,0.0001645,2]
[396230598,1764848262827,-300.0,0.0001645,2]
[396230599,1764848262862,-300.0,0.0001645,2]
[396230600,1764848262897,-300.0,0.0001645,2]
[396230601,1764848262930,-300.0,0.0001645,2]
[396230602,1764848262968,-300.0,0.0001645,2]
[396230603,1764848263005,-300.0,0.0001645,2]
[396230604,1764848263042,-300.0,0.0001645,2]
[396230605,1764848263080,-300.0,0.0001645,2]
[396230606,1764848266251,-300.0,0.0001645,2]
[396230607,1764848266282,-300.0,0.0001645,2]
[396230608,1764848266312,-300.0,0.0001645,2]
[396230609,1764848266343,-300.0,0.0001645,2]
[396230610,1764848266370,-150.42,0.0001645,2]
[396230611,1764848266398,-414.0,0.00016565,2]
[396230612,1764848266427,-150.4393794,0.00016724,2]
[396230613,1764848266455,-500.0,0.00016994,2]
[396230614,1764848266484,-500.0,0.00016994,2]
[396230615,1764848266512,-262.83019666,0.00016994,2]
[396230616,1764848266540,-268.84225,0.00016994,2]
[396230617,1764848266567,-1126.28899878,0.00016998,2]
[396230618,1764848268580,-854.36835032,0.00016998,2]
[396230619,1764848268608,-868.3454242,0.00016998,2]
[396230620,1764848268635,-500.0,0.00017,7]
[396230621,1764848268663,-614.97,0.00017,7]
[396230622,1764848268690,-317.0,0.00017002,2]
[396230623,1764848268719,-276.022,0.00017003,2]
[396230624,1764848268745,-774.11138812,0.00017003,2]
[396230625,1764848268774,-237.48507279,0.00017003,2]
[396230626,1764848268802,-500.0,0.00017003,2]
[396230627,1764848271700,-500.0,0.00017003,2]
[396230628,1764848271730,-500.0,0.00017003,2]
[396230629,1764848271759,-500.0,0.00017003,2]
[396230630,1764848271787,-349.22607371,0.00017003,2]
[396230631,1764848271884,-5858.06215598,0.00017004,2]
[396230633,1764848627027,-220.818,0.00013565,2]
[396230634,1764848627048,-328.17555533,0.00013565,2]
[396230635,1764848716808,-269.94955677,0.00013273,2]
[396230636,1764848836832,-245.02324028,0.0001314,2]
[396230637,1764848878159,-497.44268543,0.0001314,2]
[396230638,1764848878194,-501.27900636,0.00013273,2]
[396230639,1764848878222,-238.95058194,0.00013273,2]
[396230640,1764848878251,-150.0,0.00013351,2]
[396230641,1764848878278,-440.057,0.00013565,2]
[396230642,1764848878308,-177.0,0.00015351,2]
[396230643,1764848878337,-2421.86469874,0.0001587,2]
[396230644,1764848878437,-1146.82205506,0.0001587,2]
[396230645,1764848881045,-500.0,0.00015927,2]
[396230646,1764848881074,-286.0,0.00016256,2]
[396230647,1764848881102,-399.12955785,0.00016311,2]
[396230648,1764848881130,-1400.0,0.00016356,2]
[396230649,1764848881159,-414.0,0.00016565,2]
[396230650,1764848881192,-150.0,0.00016612,2]
[396230651,1764848881291,-3701.7508843,0.00016613,2]
[396230652,1764848984115,883.0,0.00011724,2]
[396230653,1764849011238,500.0,0.00011724,2]
[396230669,1764849037551,-474.11630145,0.00016356,2]
[396230676,1764849038391,-825.88369855,0.00016356,2]
[396230677,1764849038401,-287.0,0.00016356,2]
[396230678,1764849038411,-2040.22447315,0.00016371,2]
[396230679,1764849038444,-4359.00647253,0.00016371,2]
[396230699,1764849040497,-7403.84275292,0.00016371,2]
[396230700,1764849040507,-256.1608448,0.00016613,2]
[396231027,1764849044582,-11735.6585147,0.00016613,2]
[396231028,1764849044635,-1155.4,0.00016613,2]
[396231029,1764849044648,-620.51122382,0.00016613,2]
[396231030,1764849044659,-920.38129747,0.00016613,2]
[396231032,1764849046415,-85.45927211,0.00016613,2]
[396231033,1764849046425,-1380.12408392,0.00016613,2]
[396231034,1764849046437,-1098.37612677,0.00016613,2]
[396231035,1764849114245,500.0,0.00011724,2]
[396231036,1764849194537,500.0,0.00011724,2]
[396231037,1764849272615,-164.53804103,0.00013295,2]
[396231038,1764849277001,-302.28969292,0.00013295,2]
[396231040,1764849286845,-224.78771901,0.00013295,2]
[396231041,1764849288492,-187.75871626,0.00013295,2]
[396231042,1764849292287,-205.22697952,0.00013295,2]
[396231043,1764849321889,-326.51261024,0.00013295,2]
[396231044,1764849332012,-235.76836963,0.00013295,2]
[396231045,1764849346863,-235.76836963,0.00013162,2]
[396231046,1764849346887,-58.37714409,0.00013295,2]
[396231047,1764849362742,-232.39800936,0.00013162,2]
[396231048,1764849376763,-61.74750436,0.00013162,2]
[396231049,1764849376788,-150.0,0.00013229,2]
[396231050,1764849376811,-0.53433069,0.00013295,2]
[396231051,1764849467529,-232.39800936,0.00013162,2]
[396231052,1764849467550,-79.55306758,0.00013565,2]
[396231053,1764849468695,-176.47291411,0.00013565,2]
[396231054,1764849498486,-295.17526473,0.00013429,2]
[396231055,1764849502272,-382.55064983,0.00013429,2]
[396231056,1764849603504,157.95,1e-05,2]
[396231057,1764849662164,196.63,1e-05,2]
[396231058,1764849662499,196.63,1.2e-05,2]
[396231059,1764849662795,196.63,1.3e-05,2]
[396231060,1764849663115,196.63,1.5e-05,2]
[396231061,1764849663468,196.63,1.7e-05,2]
[396231062,1764849663760,196.63,1.8e-05,2]
[396231063,1764849664095,196.63,2e-05,2]
[396231064,1764849664459,196.63,2.2e-05,2]
[396231065,1764849665397,196.63,2.3e-05,2]
[396231066,1764849665725,196.63,2.5e-05,2]
[396231067,1764849666063,196.63,2.7e-05,2]
[396231068,1764849666461,196.63,2.9e-05,2]
[396231069,1764849666933,196.63,3e-05,2]
[396231070,1764849667243,196.63,3.2e-05,2]
[396231071,1764849668047,196.63,3.4e-05,2]
[396231072,1764849668084,196.63,3.5e-05,2]
[396231073,1764849668285,196.63,3.7e-05,2]
[396231074,1764849668566,196.63,3.9e-05,2]
[396231075,1764849668881,196.63,4e-05,2]
[396231076,1764849669192,196.63,4.2e-05,2]
[396231077,1764849669518,196.63,4.4e-05,2]
[396231078,1764849669812,196.63,4.5e-05,2]
[396231079,1764849670114,196.63,4.7e-05,2]
[396231080,1764849670414,196.63,4.9e-05,2]
[396231081,1764849670692,196.63,5e-05,2]
[396231082,1764849671050,196.63,5.2e-05,2]
[396231083,1764849671319,196.63,5.4e-05,2]
[396231084,1764849671616,196.63,5.5e-05,2]
[396231085,1764849671888,196.63,5.7e-05,2]
[396231086,1764849672247,196.63,5.9e-05,2]
[396231087,1764849672593,196.63,6.1e-05,2]
[396231088,1764849672882,196.63,6.2e-05,2]
[396231089,1764849673162,196.63,6.4e-05,2]
[396231090,1764849673491,196.63,6.6e-05,2]
[396231091,1764849673824,196.63,6.7e-05,2]
[396231092,1764849674131,196.63,6.9e-05,2]
[396231093,1764849674423,196.63,7.1e-05,2]
[396231094,1764849674708,196.63,7.2e-05,2]
[396231095,1764849675023,196.63,7.4e-05,2]
[396231096,1764849675937,196.63,7.6e-05,2]
[396231097,1764849676263,196.63,7.7e-05,2]
[396231098,1764849676575,196.63,7.9e-05,2]
[396231099,1764849676849,196.63,8.1e-05,2]
[396231100,1764849677126,196.63,8.2e-05,2]
[396231101,1764849677454,190.34,8.4e-05,2]
[396231102,1764849677489,6.29,8.4e-05,2]
[396231103,1764849677739,196.63,8.6e-05,2]
[396231104,1764849678012,196.63,8.7e-05,2]
[396231105,1764849678745,196.63,8.9e-05,2]
[396231106,1764849678800,196.63,9.1e-05,2]
[396231107,1764849679898,-196.63,9.3e-05,2]
[396231108,1764849692499,-354.55355527,0.0001316,2]
[396231109,1764849706797,-243.20720629,0.00013029,2]
[396231110,1764849736823,-134.32626052,0.00013029,2]
[396231111,1764849736847,-59.44644473,0.0001316,2]
[396231112,1764849736870,-131.88747618,0.00014079,2]
[396231113,1764849782219,150.95,1e-05,2]
[396231114,1764849782500,150.95,1.2e-05,2]
[396231115,1764849782792,150.95,1.4e-05,2]
[396231116,1764849783164,150.95,1.5e-05,2]
[396231117,1764849783488,150.95,1.7e-05,2]
[396231118,1764849783784,150.95,1.9e-05,2]
[396231119,1764849784128,150.95,2.1e-05,2]
[396231120,1764849784492,150.95,2.3e-05,2]
[396231121,1764849784764,150.95,2.4e-05,2]
[396231122,1764849785052,150.95,2.6e-05,2]
[396231123,1764849785380,150.95,2.8e-05,2]